bitfinex/quotes_SOLUSD_20251116
["timestamp","ask_amount","ask_price","bid_price","bid_amount"]
[1763255054189,36.79223186,138.87,138.83,7.62001144]
[1763255054386,36.79223186,138.87,138.83,0.68]
[1763255054612,6.94001144,138.86,138.83,0.68]
[1763255055206,6.94001144,138.84,138.8,7.88420115]
[1763255055406,6.94001144,138.84,138.8,0.68]
[1763255055778,6.94001144,138.83,138.8,0.68]
[1763255055982,6.94001144,138.85,138.8,14.82457325]
[1763255056211,6.94001144,138.85,138.81,0.68]
[1763255056394,14.14207667,138.85,138.81,0.68]
[1763255056712,6.94001144,138.84,138.81,0.68]
[1763255056907,6.94001144,138.85,138.81,0.68]
[1763255057381,6.94001144,138.84,138.81,0.68]
[1763255058707,6.94001144,138.83,138.8,7.20456181]
[1763255059086,6.94001144,138.83,138.81,0.68]
[1763255059490,7.54001144,138.83,138.79,7.20491229]
[1763255059691,6.94001144,138.81,138.78,7.20551603]
[1763255059885,6.94001144,138.8,138.77,0.78]
[1763255060194,6.94001144,138.8,138.77,7.98614523]
[1763255060400,6.94001144,138.8,138.77,0.78]
[1763255060583,6.94001144,138.79,138.77,0.78]
[1763255060912,6.94001144,138.78,138.77,0.1]
[1763255063087,8.6,138.8,138.77,0.78]
[1763255064092,8.6,138.8,138.77,7.72001144]
[1763255064294,6.94001144,138.82,138.78,6.94001144]
[1763255064501,6.94001144,138.82,138.79,0.68]
[1763255065311,14.14359403,138.82,138.79,0.68]
[1763255066393,38.45437787,138.83,138.79,0.68]
[1763255066598,6.94001144,138.82,138.79,7.88511018]
[1763255066808,104.8,138.87,138.8,0.68]
[1763255067012,6.94001144,138.83,138.78,7.20559046]
[1763255067224,6.94001144,138.79,138.77,0.1]
[1763255067421,8.6,138.82,138.77,14.92614549]
[1763255067735,8.6,138.82,138.8,6.94001144]
[1763255067888,8.6,138.82,138.79,6.94001144]
[1763255068394,8.6,138.82,138.8,0.68]
[1763255068733,139.1927699,138.87,138.8,0.68]
[1763255068734,18.60043528,138.89,138.81,14.14410336]
[1763255068900,6.94001144,138.87,138.82,6.94001144]
[1763255069093,6.94001144,138.87,138.82,7.62001144]
[1763255069288,6.94001144,138.86,138.83,0.68]
[1763255070732,14.14196478,138.86,138.83,0.68]
[1763255071042,6.94001144,138.86,138.83,0.68]
[1763255071212,14.14159106,138.86,138.83,0.68]
[1763255071402,6.94001144,138.86,138.83,0.68]
[1763255072016,14.1415359,138.86,138.83,0.68]
[1763255072725,14.1415359,138.86,138.83,7.88302509]
[1763255073245,8.6,138.88,138.84,6.94001144]
[1763255073444,22.74055251,138.88,138.84,7.62001144]
[1763255073730,22.74055251,138.88,138.85,0.68]
[1763255073901,15.54001144,138.88,138.85,0.68]
[1763255074101,8.6,138.88,138.85,0.68]
[1763255074304,8.6,138.88,138.85,7.62001144]
[1763255074708,15.7990349,138.91,138.86,6.94001144]
[1763255074901,22.73904634,138.91,138.86,7.62001144]
[1763255075215,6.94001144,138.9,138.87,0.68]
[1763255075419,6.94001144,138.88,138.84,0.68]
[1763255075643,0.6,138.9,138.85,0.68]
[1763255075805,6.94001144,138.89,138.85,0.68]
[1763255076346,6.94001144,138.89,138.85,7.62001144]
[1763255076543,6.94001144,138.88,138.85,0.68]
[1763255076946,14.14047833,138.88,138.85,0.68]
[1763255077743,6.94001144,138.88,138.85,0.68]
[1763255077907,6.94001144,138.9,138.86,6.94001144]
[1763255078108,6.94001144,138.9,138.87,0.68]
[1763255078308,15.798984,138.91,138.87,0.68]
[1763255078519,6.94001144,138.9,138.87,0.68]
[1763255079239,6.94001144,138.9,138.87,7.88090502]
[1763255079819,6.94001144,138.9,138.87,0.68]
[1763255080345,6.94001144,138.89,138.85,0.68]
[1763255080515,6.94001144,138.89,138.86,0.68]
[1763255080830,15.79910784,138.91,138.87,7.20097933]
[1763255081029,6.94001144,138.9,138.87,7.20097933]
[1763255081235,25.78716978,138.96,138.89,6.94001144]
[1763255081424,14.13632692,138.96,138.91,6.94001144]
[1763255081733,14.13632692,138.96,138.92,0.68]
[1763255081913,14.73632692,138.96,138.92,0.68]
[1763255082109,37.38752692,138.96,138.92,0.68]
[1763255082610,14.13632692,138.96,138.92,7.87818505]
[1763255082833,29.59121144,138.96,138.92,14.81819649]
[1763255083025,22.6512,138.96,138.93,0.68]
[1763255083210,22.6512,138.96,138.92,0.66]
[1763255083211,37.38752891,138.96,138.92,0.66]
[1763255083420,14.73632891,138.96,138.92,0.66]
[1763255083615,37.38752891,138.96,138.92,0.66]
[1763255083811,36.78752891,138.96,138.92,0.66]
[1763255084307,54.77831762,138.96,138.92,0.66]
[1763255084925,6.94001144,138.95,138.92,0.66]
[1763255086328,36.78752891,138.96,138.92,0.66]
[1763255086938,6.94001144,138.95,138.91,7.60001144]
[1763255087145,6.94001144,138.95,138.92,0.66]
[1763255088241,104.2,138.99,138.92,7.85834288]
[1763255088554,25.52883913,139.0,138.96,6.94001144]
[1763255088714,15.74001144,139.0,138.95,6.94001144]
[1763255089213,23.53427307,139.0,138.96,0.66]
[1763255089843,6.94001144,138.99,138.96,0.66]
[1763255091843,14.13486212,138.99,138.96,0.66]
[1763255092212,6.94001144,138.97,138.91,0.66]
[1763255092525,15.79591517,138.97,138.92,7.60001144]
[1763255092891,22.73592661,138.97,138.92,7.60001144]
[1763255093021,7.19495232,138.99,138.94,6.94001144]
[1763255093218,36.78616376,138.99,138.95,6.94001144]
[1763255093625,36.78616376,138.99,138.96,0.66]
[1763255093831,22.6512,138.99,138.96,0.66]
[1763255094223,7.14001144,139.0,138.96,0.66]
[1763255094443,14.33430646,139.0,138.96,0.66]
[1763255094936,7.39429502,139.0,138.96,7.85616905]
[1763255095137,0.2,139.0,138.96,14.79618049]
[1763255095344,0.2,139.0,138.97,0.66]
[1763255095829,7.39440311,139.0,138.97,0.66]
[1763255096024,7.14001144,139.0,138.97,0.66]
[1763255096226,0.2,139.0,138.97,0.66]
[1763255096632,0.2,139.0,138.97,7.85538605]
[1763255096829,0.2,139.0,138.98,5.01479156]
[1763255097247,0.2,139.0,138.99,0.66]
[1763255098430,0.2,139.0,138.99,5.01479156]
[1763255098630,0.2,139.0,138.99,12.20955377]
[1763255099158,0.2,139.0,138.99,7.85476221]
[1763255099540,0.2,139.0,138.99,12.20955377]
[1763255100830,0.2,139.0,138.99,9.64588782]
[1763255101656,1.99112561,139.0,138.96,0.66]
[1763255101862,1.99112561,139.0,138.93,0.66]
[1763255101863,1.79112561,138.97,138.93,0.66]
[1763255102067,8.78,139.0,138.94,2.45112561]
[1763255102265,0.2,139.0,138.97,1.79112561]
[1763255102568,7.99436352,139.0,138.95,0.66]
[1763255102761,10.59112561,139.0,138.96,2.45112561]
[1763255103059,0.2,139.0,138.96,2.45112561]
[1763255103361,1.79112561,138.98,138.94,2.45112561]
[1763255103662,1.79112561,138.96,138.93,7.19780827]
[1763255103865,10.39112561,138.99,138.94,2.45112561]
[1763255104073,8.6,138.99,138.95,1.79112561]
[1763255104232,8.6,138.99,138.96,1.79112561]
[1763255104437,8.6,138.99,138.96,0.66]
[1763255104989,8.6,138.99,138.97,1.79112561]
[1763255105138,0.2,139.0,138.98,1.79112561]
[1763255105532,0.2,139.0,138.99,0.66]
[1763255105861,0.2,139.0,138.97,1.79112561]
[1763255106044,0.2,139.0,138.98,0.66]
[1763255106865,0.2,139.0,138.98,7.85525505]
[1763255107181,0.2,139.0,138.98,12.21027504]
[1763255107357,0.2,139.0,138.99,0.66]
[1763255108039,0.2,139.0,138.97,12.21076079]
[1763255108271,0.2,139.0,138.98,0.66]
[1763255108985,0.2,139.0,138.98,12.20979173]
[1763255109146,0.2,139.0,138.97,11.55057478]
[1763255109347,4.55501999,139.0,138.97,7.85555479]
[1763255109972,0.2,139.0,138.97,7.85555479]
[1763255110267,0.2,139.0,138.98,0.66]
[1763255110441,0.2,139.0,138.98,5.01501999]
[1763255110968,0.2,139.0,138.98,0.66]
[1763255111553,0.2,139.0,138.99,7.19476221]
[1763255111748,0.2,139.0,138.99,12.2097822]
[1763255112367,8.6,139.06,138.99,30.19668773]
[1763255112555,8.6,139.06,139.03,4.35501999]
[1763255112955,8.6,139.06,139.03,0.66]
[1763255113256,4.35501999,139.07,139.03,0.66]
[1763255113462,4.35501999,139.07,139.03,5.01501999]
[1763255113838,5.05501999,139.07,139.04,7.19217491]
[1763255114044,22.8512,139.08,139.04,12.2371949]
[1763255114269,27.20621999,139.08,139.05,0.69]
[1763255114842,4.55501999,139.08,139.04,12.2371949]
[1763255115069,4.55501999,139.08,139.05,0.69]
[1763255115456,5.25501999,139.08,139.04,11.5471949]
[1763255115773,12.44512848,139.08,139.04,12.2371949]
[1763255115944,12.44512848,139.08,139.04,7.88217491]
[1763255116674,4.35501999,139.07,139.03,11.54757118]
[1763255117146,0.2,139.08,139.04,5.04501999]
[1763255117547,0.2,139.08,139.05,5.04501999]
[1763255117943,0.2,139.08,139.05,12.23631806]
[1763255118143,0.2,139.08,139.05,7.88129807]
[1763255118344,0.2,139.08,139.05,0.69]
[1763255118770,0.2,139.08,139.05,7.88153814]
[1763255118956,0.2,139.08,139.06,0.69]
[1763255119152,0.2,139.08,139.06,5.04501999]
[1763255119549,0.2,139.08,139.07,5.04501999]
[1763255119974,0.2,139.09,139.08,7.19010641]
[1763255120181,0.2,139.09,139.08,12.2351264]
[1763255121359,0.2,139.09,139.07,20.12542683]
[1763255121552,0.2,139.09,139.07,16.46040684]
[1763255121753,0.2,139.09,139.07,7.88040684]
[1763255121947,0.2,139.09,139.07,11.54542683]
[1763255122247,0.2,139.09,139.08,5.04501999]
[1763255122663,0.2,139.09,139.08,13.62501999]
[1763255122908,0.2,139.09,139.08,23.41384768]
[1763255123262,1e-08,139.09,139.08,50.42006767]
[1763255123586,1e-08,139.09,139.08,46.06504768]
[1763255124077,1e-08,139.09,139.08,53.25515409]
[1763255125779,1e-08,139.09,139.08,43.4663264]
[1763255126088,1e-08,139.09,139.08,20.8151264]
[1763255126253,1e-08,139.09,139.08,43.4663264]
[1763255128587,1e-08,139.09,139.07,7.19017442]
[1763255128780,5.05502,139.09,139.06,7.19089394]
[1763255129092,5.05502,139.09,139.0,35.97043139]
[1763255129093,4.35501999,139.07,139.03,11.54771221]
[1763255129257,5.05501999,139.08,139.03,12.23771221]
[1763255129657,5.05501999,139.07,139.03,11.54771221]
[1763255129858,5.05501999,139.07,139.02,11.54807818]
[1763255130058,5.05501999,139.06,139.01,15.77359832]
[1763255130281,4.35501999,139.05,139.01,7.19359832]
[1763255130486,5.05501999,139.05,139.01,7.19359832]
[1763255130669,5.05501999,139.05,139.01,11.54861831]
[1763255130885,5.05501999,139.05,139.01,12.23861831]
[1763255131889,5.05501999,139.05,139.01,11.54861831]
[1763255132067,5.05501999,139.04,139.0,7.19413845]
[1763255132386,5.05501999,139.04,139.0,11.54915844]
[1763255132792,4.35501999,139.04,139.0,7.19413845]
[1763255132963,0.7,139.03,139.0,11.54915844]
[1763255133292,5.05501999,139.03,139.0,7.19413845]
[1763255133888,4.35501999,139.02,138.98,22.6512]
[1763255134188,0.7,139.04,138.99,4.35501999]
[1763255134381,4.35501999,139.05,139.0,4.35501999]
[1763255134582,0.7,139.05,139.01,4.35501999]
[1763255134782,0.7,139.04,139.01,4.35501999]
[1763255135580,0.7,139.04,139.01,11.54827614]
[1763255137599,0.7,139.04,139.01,7.19325615]
[1763255138194,5.05501999,139.04,139.01,7.19325615]
[1763255138492,12.24719958,139.04,139.01,7.19325615]
[1763255138789,0.7,139.03,139.0,7.19405363]
[1763255139092,0.7,139.03,138.99,12.23960909]
[1763255139297,4.35501999,139.0,138.96,4.35501999]
[1763255139465,4.35501999,138.99,138.95,13.62501999]
[1763255139666,4.35501999,138.98,138.95,8.58]
[1763255139867,4.35501999,138.99,138.94,4.35501999]
[1763255140160,4.35501999,138.98,138.93,4.35501999]
[1763255140390,4.35501999,138.95,138.91,5.04501999]
[1763255140581,4.35501999,138.95,138.91,7.19890576]
[1763255140775,0.7,138.94,138.91,7.19890576]
[1763255141083,4.35501999,138.95,138.91,12.24392575]
[1763255141084,0.7,138.95,138.91,12.24392575]
[1763255141473,4.35501999,138.96,138.91,12.24392575]
[1763255141676,5.05501999,138.96,138.91,12.24392575]
[1763255141876,0.7,138.95,138.91,30.24119016]
[1763255142077,5.05501999,138.95,138.91,7.19890576]
[1763255142301,4.35501999,138.94,138.9,7.19923053]
[1763255142500,5.05501999,138.94,138.9,7.19923053]
[1763255142701,4.35501999,138.94,138.9,7.19923053]
[1763255142994,5.05501999,138.94,138.9,7.88923053]
[1763255143585,0.69,138.93,138.9,7.19923053]
[1763255143886,5.04501999,138.94,138.9,7.19923053]
[1763255144401,0.69,138.93,138.9,7.19923053]
[1763255144604,12.24244709,138.94,138.9,7.87923053]
[1763255145103,5.04501999,138.94,138.9,12.23425052]
[1763255145472,8.58,138.97,138.91,4.35501999]
[1763255145685,4.35501999,138.96,138.91,5.03501999]
[1763255145898,22.6512,138.97,138.94,11.55214573]
[1763255146199,22.6512,138.97,138.93,30.22735852]
[1763255146400,22.6512,138.97,138.93,12.23268495]
[1763255146591,0.69,138.96,138.92,11.55331491]
[1763255146792,34.20208606,138.97,138.92,12.23331491]
[1763255147005,34.20208606,138.97,138.93,0.68]
[1763255147006,23.3412,138.97,138.93,0.68]
[1763255147309,15.77447045,139.0,138.93,5.03501999]
[1763255147482,5.04501999,138.99,138.93,0.68]
[1763255147679,5.04501999,138.99,138.94,4.35501999]
[1763255147680,4.35501999,138.98,138.94,4.35501999]
[1763255148198,4.35501999,138.98,138.95,7.19683339]
[1763255148780,5.04501999,138.97,138.94,7.19731833]
[1763255153515,11.55082619,138.97,138.93,4.35501999]
[1763255153813,4.35501999,138.94,138.91,7.19869251]
[1763255154014,4.35501999,138.93,138.9,7.19920651]
[1763255154319,4.35501999,138.93,138.89,7.19978507]
[1763255154522,5.04501999,138.93,138.89,7.87978507]
[1763255154898,5.04501999,138.92,138.88,20.13527327]
[1763255155218,5.04501999,138.92,138.88,7.20025328]
[1763255155603,0.69,138.92,138.88,7.88025328]
[1763255155799,22.6512,138.95,138.89,0.68]
[1763255155992,4.35501999,138.93,138.89,0.68]
[1763255156414,4.35501999,138.93,138.89,5.03501999]
[1763255156809,4.35501999,138.93,138.9,7.19942404]
[1763255157003,6.94034128,138.93,138.9,7.19942404]
[1763255157314,14.8283045,138.93,138.89,14.82005848]
[1763255157513,0.69,138.92,138.88,14.14064739]
[1763255157716,7.63034128,138.92,138.88,14.14064739]
[1763255157927,14.1383045,138.93,138.89,0.68]
[1763255158221,14.8283045,138.93,138.89,0.68]
[1763255158799,14.8283045,138.93,138.9,7.19942404]
[1763255159114,14.8283045,138.93,138.89,7.87973967]
[1763255159420,0.69,138.92,138.89,7.19973967]
[1763255159591,14.8283045,138.93,138.89,7.87973967]
[1763255159994,6.94034128,138.9,138.86,6.94034128]
[1763255160191,6.94034128,138.88,138.85,7.30183088]
[1763255160391,6.94034128,138.86,138.85,0.1]
[1763255160618,7.63034128,138.86,138.85,0.1]
[1763255160796,14.83183919,138.86,138.85,0.1]
[1763255161501,24.62066688,138.86,138.85,0.1]
[1763255164322,24.62066688,138.86,138.85,1e-08]
[1763255164715,16.72916897,138.81,138.8,0.1]
[1763255164908,25.30916897,138.81,138.8,0.1]
[1763255165102,25.99916897,138.81,138.8,0.1]
[1763255166102,34.93951024,138.81,138.8,1e-08]
[1763255166305,32.44002769,138.78,138.77,0.1]
[1763255166614,39.38036897,138.78,138.77,0.1]
[1763255166803,9.78882769,138.77,138.75,0.1]
[1763255167002,39.38036897,138.75,138.72,0.1]
[1763255167208,39.38036897,138.73,138.72,0.1]
[1763255167827,17.41916897,138.73,138.72,0.1]
[1763255168033,40.07036897,138.73,138.72,0.1]
[1763255168328,31.56775648,138.73,138.72,0.1]
[1763255168903,24.6274152,138.73,138.72,0.1]
[1763255169099,9.78882769,138.73,138.72,0.1]
[1763255169399,29.59154128,138.73,138.72,0.1]
[1763255169613,40.07036897,138.73,138.72,0.1]
[1763255170324,47.2786152,138.73,138.72,0.1]
[1763255170700,8.6,138.75,138.72,0.78]
[1763255170995,8.6,138.75,138.72,7.72034128]
[1763255171401,8.6,138.75,138.73,0.68]
[1763255171599,8.6,138.75,138.72,7.04034128]
[1763255171600,6.94034128,138.74,138.72,0.1]
[1763255171814,6.94034128,138.74,138.72,0.78]
[1763255172014,6.94034128,138.74,138.72,0.1]
[1763255172325,22.74773562,138.75,138.72,0.1]
[1763255172828,39.38036897,138.73,138.72,0.1]
[1763255173327,6.94034128,138.74,138.72,0.1]
[1763255173630,38.19154128,138.75,138.72,0.81]
[1763255173847,8.6,138.75,138.72,7.75034128]
[1763255174434,8.6,138.75,138.73,0.71]
[1763255174633,15.54034128,138.75,138.72,0.81]
[1763255174832,22.74755032,138.75,138.72,0.81]
[1763255175138,15.54034128,138.75,138.72,8.01875851]
[1763255175297,15.54034128,138.75,138.72,0.81]
[1763255175502,6.94034128,138.74,138.72,0.81]
[1763255175698,6.94034128,138.73,138.72,0.1]
[1763255176117,38.45841581,138.75,138.72,0.1]
[1763255176411,6.94034128,138.74,138.72,0.1]
[1763255177011,31.2512,138.75,138.73,0.71]
[1763255177330,38.19154128,138.75,138.73,0.71]
[1763255178717,8.6,138.75,138.73,0.71]
[1763255178914,8.6,138.75,138.73,7.91784281]
[1763255179438,8.6,138.75,138.74,0.71]
[1763255179807,29.59154128,138.78,138.74,0.71]
[1763255180217,15.54034128,138.79,138.74,7.65034128]
[1763255180460,8.6,138.79,138.76,6.94034128]
[1763255180638,18.00307814,138.87,138.78,6.94034128]
[1763255180933,6.94034128,138.83,138.79,7.91505133]
[1763255181309,6.94034128,138.83,138.8,0.71]
[1763255181509,6.94034128,138.81,138.77,0.71]
[1763255181736,6.94034128,138.78,138.72,0.81]
[1763255181954,6.94034128,138.77,138.72,7.75034128]
[1763255182309,6.94034128,138.77,138.73,0.71]
[1763255182505,6.94034128,138.78,138.73,7.65034128]
[1763255182733,25.21078235,138.83,138.72,25.33065909]
[1763255182734,9.78882769,138.87,138.77,6.94034128]
[1763255182914,6.94034128,138.82,138.77,6.94034128]
[1763255183233,6.94034128,138.84,138.79,6.94034128]
[1763255183438,6.94034128,138.83,138.78,0.71]
[1763255183627,6.94034128,138.85,138.8,6.94034128]
[1763255184139,6.94034128,138.85,138.81,0.71]
[1763255184311,6.94034128,138.85,138.81,7.65034128]
[1763255184511,6.94034128,138.83,138.79,7.65034128]
[1763255185021,6.94034128,138.83,138.8,0.71]
[1763255185312,9.78882769,138.85,138.8,0.71]
[1763255185524,39.14289278,138.86,138.8,0.71]
[1763255185525,38.19154128,138.86,138.81,6.94034128]
[1763255185723,15.54034128,138.86,138.81,6.94034128]
[1763255186039,15.54034128,138.86,138.82,0.71]
[1763255186228,22.74185369,138.86,138.82,7.65034128]
[1763255186543,15.80151241,138.86,138.82,7.65034128]
[1763255186763,8.6,138.86,138.83,7.65034128]
[1763255187153,8.6,138.86,138.84,7.20253529]
[1763255187355,0.2,138.88,138.85,6.94034128]
[1763255187563,0.2,138.88,138.87,6.94034128]
[1763255187946,0.2,138.88,138.87,7.65034128]
[1763255188150,6.94034128,138.94,138.87,7.65034128]
[1763255188365,6.94034128,138.93,138.89,6.94034128]
[1763255188861,6.94034128,138.93,138.9,0.71]
[1763255189062,22.6512,138.9,138.83,0.71]
[1763255189259,6.94034128,138.88,138.84,14.14287657]
[1763255189462,6.94034128,138.88,138.84,7.20253529]
[1763255189661,6.94034128,138.88,138.85,0.71]
[1763255190658,6.94034128,138.88,138.83,6.94034128]
[1763255190979,6.94034128,138.86,138.82,6.94034128]
[1763255191182,0.69,138.87,138.81,14.85428172]
[1763255191340,6.94034128,138.85,138.81,14.14438142]
[1763255191543,6.94034128,138.86,138.82,7.65034128]
[1763255192058,6.94034128,138.86,138.82,0.71]
[1763255192445,6.94034128,138.86,138.82,7.65034128]
[1763255192446,14.14184459,138.86,138.82,7.65034128]
[1763255192637,14.14184459,138.86,138.82,0.71]
[1763255192843,6.94034128,138.85,138.8,7.65034128]
[1763255193158,6.94034128,138.85,138.81,7.65034128]
[1763255193562,6.94034128,138.85,138.81,0.71]
[1763255193760,6.94034128,138.85,138.81,6.94034128]
[1763255193939,6.94034128,138.85,138.82,0.71]
[1763255194573,36.792571,138.87,138.82,14.85349306]
[1763255194744,6.94034128,138.86,138.82,7.65034128]
[1763255195068,6.94034128,138.85,138.82,0.71]
[1763255195763,6.94034128,138.86,138.82,7.91353899]
[1763255195969,22.6512,138.87,138.84,6.94034128]
[1763255196349,29.59154128,138.87,138.83,6.94034128]
[1763255196551,6.94034128,138.86,138.82,14.14388027]
[1763255196854,6.94034128,138.86,138.83,0.71]
[1763255197462,14.83195506,138.86,138.81,14.14429937]
[1763255197650,14.83195506,138.86,138.81,14.85429937]
[1763255197849,14.83195506,138.86,138.82,0.71]
[1763255198354,0.69,138.85,138.81,14.14429937]
[1763255198544,14.83285378,138.85,138.81,14.85429937]
[1763255198958,14.83285378,138.85,138.81,7.91395809]
[1763255199572,14.83285378,138.85,138.81,14.85429937]
[1763255200163,14.14285378,138.85,138.8,6.94034128]
[1763255200353,6.94034128,138.83,138.79,6.94034128]
[1763255200558,15.54034128,138.85,138.81,6.94034128]
[1763255200764,15.80205464,138.85,138.81,6.94034128]
[1763255200963,15.80205464,138.85,138.81,7.65034128]
[1763255201676,22.74239592,138.85,138.81,0.71]
[1763255201982,22.74239592,138.85,138.81,14.85438637]
[1763255202161,22.74239592,138.85,138.81,7.65034128]
[1763255202789,22.74239592,138.85,138.8,6.94034128]
[1763255202790,6.94034128,138.84,138.8,6.94034128]
[1763255202965,6.94034128,138.82,138.77,0.71]
[1763255203164,6.94034128,138.82,138.78,6.94034128]
[1763255203579,7.63034128,138.82,138.78,0.7]
[1763255203891,7.20409192,138.81,138.78,0.7]
[1763255204074,14.1444332,138.81,138.77,14.14621317]
[1763255204279,7.63034128,138.8,138.75,7.90672897]
[1763255204583,7.63034128,138.8,138.76,0.7]
[1763255204771,6.94034128,138.8,138.76,0.7]
[1763255205776,14.14537104,138.8,138.76,0.7]
[1763255206579,14.14537104,138.8,138.76,14.84696258]
[1763255206782,8.6,138.81,138.77,6.94034128]
[1763255206969,41.04002769,138.84,138.79,6.94034128]
[1763255207171,45.39410523,138.84,138.79,6.94034128]
[1763255207481,22.74290523,138.84,138.8,7.64034128]
[1763255207871,15.54034128,138.84,138.8,14.84480708]
[1763255208081,22.74314723,138.84,138.8,14.84480708]
[1763255208289,8.6,138.84,138.81,7.64034128]
[1763255208473,22.6512,138.85,138.82,6.94034128]
[1763255208674,22.6512,138.85,138.82,7.64034128]
[1763255209073,15.54034128,138.87,138.83,7.64034128]
[1763255209588,8.6,138.87,138.84,7.64034128]
[1763255209761,14.83035265,138.89,138.85,6.94034128]
[1763255209962,37.48155265,138.89,138.85,14.84231447]
[1763255210162,7.89001137,138.89,138.85,14.84231447]
[1763255210561,14.83035265,138.89,138.85,14.84231447]
[1763255210788,7.20001137,138.89,138.86,0.7]
[1763255210984,38.45084217,138.9,138.86,7.64034128]
[1763255211293,46.08118345,138.9,138.86,7.64034128]
[1763255212172,10.47882769,138.89,138.84,6.94034128]
[1763255212387,6.94034128,138.89,138.85,6.94034128]
[1763255212585,6.94034128,138.89,138.85,7.64034128]
[1763255212964,31.2512,138.9,138.86,7.64034128]
[1763255213171,8.6,138.9,138.88,6.94034128]
[1763255213568,6.94034128,138.94,138.89,7.64034128]
[1763255213771,8.6,138.93,138.89,7.64034128]
[1763255214107,8.6,138.93,138.91,6.94034128]
[1763255214273,8.6,138.93,138.9,14.83936984]
[1763255215178,7.88792852,138.93,138.89,6.94034128]
[1763255215479,14.8282698,138.93,138.88,14.84042406]
[1763255215677,6.94034128,138.92,138.88,14.14042406]
[1763255215889,7.63034128,138.92,138.88,7.64034128]
[1763255216185,23.42771897,138.94,138.89,14.84023278]
[1763255216387,6.94034128,138.96,138.92,6.94034128]
[1763255216574,7.63034128,138.96,138.91,6.94034128]
[1763255216768,6.94034128,138.94,138.9,6.94034128]
[1763255216966,4.35977697,138.94,138.9,4.35977697]
[1763255217190,4.35977697,138.94,138.9,5.05977697]
[1763255217397,5.04977697,138.94,138.9,5.05977697]
[1763255217775,5.04977697,138.94,138.9,0.7]
[1763255218295,12.24756463,138.94,138.9,7.89941096]
[1763255218484,5.04977697,138.94,138.9,12.25918793]
[1763255219484,11.55722059,138.94,138.9,12.25918793]
[1763255220088,12.24722059,138.94,138.9,7.89941096]
[1763255220290,5.04977697,138.93,138.89,11.55958419]
[1763255220602,5.04977697,138.93,138.89,12.25958419]
[1763255220799,5.04977697,138.93,138.89,7.89980722]
[1763255220999,4.35977697,138.9,138.85,8.6]
[1763255221297,4.35977697,138.91,138.87,4.35977697]
[1763255221473,5.04977697,138.92,138.88,4.35977697]
[1763255221673,35.61097697,138.93,138.88,4.35977697]
[1763255221872,36.30097697,138.93,138.88,5.05977697]
[1763255222097,7.19890576,138.91,138.87,11.56064585]
[1763255222303,31.2512,138.93,138.88,4.35977697]
[1763255222601,31.2512,138.93,138.87,4.35977697]
[1763255222602,5.04977697,138.92,138.87,4.35977697]
[1763255222786,5.04977697,138.92,138.88,5.05977697]
[1763255222986,43.499055,138.93,138.88,5.05977697]
[1763255223294,4.35977697,138.97,138.92,4.35977697]
[1763255223499,4.35977697,138.96,138.92,4.35977697]
[1763255223698,4.35977697,138.96,138.93,0.7]
[1763255223895,8.6,138.97,138.94,4.35977697]
[1763255224205,8.6,138.97,138.95,5.05977697]
[1763255224402,8.6,139.0,138.96,4.35977697]
[1763255224600,8.6,139.0,138.96,5.05977697]
[1763255224779,9.29,139.0,138.96,5.05977697]
[1763255225286,16.4842974,139.0,138.97,4.35977697]
[1763255225998,16.48428087,139.0,138.97,4.35977697]
[1763255226594,22.6512,139.01,138.99,4.35977697]
[1763255226780,22.6512,139.01,138.96,25.18681737]
[1763255226781,0.2,139.02,139.0,5.05977697]
[1763255227117,0.2,139.02,139.01,4.35977697]
[1763255227328,0.2,139.02,139.01,12.25350403]
[1763255228584,0.2,139.02,139.01,26.40210869]
[1763255228906,0.2,139.02,139.01,12.25350403]
[1763255229489,0.2,139.02,139.0,4.35977697]
[1763255229696,0.2,139.02,139.01,5.05977697]
[1763255230079,0.2,139.02,139.0,4.35977697]
[1763255230479,0.2,139.02,138.99,4.35977697]
[1763255230680,8.08324113,139.02,138.98,5.05977697]
[1763255230887,12.4430181,139.02,138.98,5.05977697]
[1763255231409,12.4430181,139.02,138.97,11.55557162]
[1763255231903,5.04977697,139.01,138.97,4.35977697]